bitfinex/quotes_SOLUSD_20240604
["timestamp","ask_amount","ask_price","bid_price","bid_amount"]
[1717535926086,2.1862,169.24,169.2,8.8667]
[1717535926267,2.1863,169.23,169.19,8.8668]
[1717535926783,2.1863,169.24,169.2,2.1867]
[1717535927362,2.1863,169.23,169.2,2.1867]
[1717535927580,2.1862,169.24,169.2,2.1867]
[1717535928075,2.1863,169.23,169.19,2.1868]
[1717535928990,2.1863,169.24,169.2,2.1867]
[1717535931592,2.1863,169.23,169.19,2.1868]
[1717535932191,2.1863,169.24,169.2,2.1867]
[1717535936503,41.7722,169.25,169.19,10.9342]
[1717535936707,50.6383,169.25,169.21,2.1865]
[1717535937218,2.1862,169.24,169.2,2.1866]
[1717535937707,48.4522,169.25,169.18,6.68]
[1717535937871,35.42,169.29,169.21,6.5597]
[1717535938064,20.0,169.28,169.22,6.68]
[1717535938300,2.1855,169.3,169.26,2.1859]
[1717535938494,2.1856,169.29,169.25,2.186]
[1717535939280,6.1771,169.3,169.26,2.1859]
[1717535939496,6.1771,169.3,169.25,6.68]
[1717535939497,8.3626,169.3,169.25,8.866]
[1717535939695,15.0426,169.3,169.25,2.186]
[1717535940085,2.1856,169.29,169.25,2.186]
[1717535942699,8.3626,169.3,169.25,2.186]
[1717535942901,9.72812846,169.3,169.25,2.186]
[1717535943808,2.1856,169.29,169.25,2.186]
[1717535944999,8.8657,169.28,169.24,2.1861]
[1717535946913,6.68,169.28,169.22,6.68]
[1717535947083,2.1862,169.25,169.22,6.68]
[1717535947277,2.1862,169.25,169.21,2.1865]
[1717535947477,8.8662,169.25,169.21,2.1865]
[1717535950185,2.1862,169.24,169.2,2.1866]
[1717535950385,8.8661,169.25,169.21,2.1865]
[1717535950693,2.1861,169.25,169.21,2.1865]
[1717535951202,2.1862,169.24,169.19,11.0537]
[1717535951498,2.1862,169.24,169.18,15.3086]
[1717535951499,2.1862,169.24,169.2,2.1866]
[1717535951682,2.1864,169.23,169.19,2.1868]
[1717535952104,2.1864,169.23,169.2,2.1867]
[1717535952312,2.1862,169.24,169.2,2.1867]
[1717535952676,8.8661,169.25,169.21,2.1866]
[1717535952898,2.1861,169.25,169.21,2.1866]
[1717535953210,22.1861,169.25,169.21,2.1866]
[1717535953727,2.1862,169.24,169.21,2.1866]
[1717535954199,2.1862,169.24,169.2,2.1866]
[1717535954384,20.0,169.25,169.19,6.68]
[1717535954385,2.1864,169.23,169.19,2.1868]
[1717535963303,2.1864,169.23,169.2,2.1867]
[1717535963605,2.1864,169.23,169.19,2.1868]
[1717535963794,2.1864,169.23,169.18,6.68]
[1717535964094,2.1864,169.23,169.19,2.1868]
[1717535966095,2.1864,169.23,169.17,26.364]
[1717535966096,2.1864,169.23,169.2,2.1867]
[1717535967813,2.1865,169.22,169.18,2.1868]
[1717535968419,2.1865,169.22,169.19,2.1868]
[1717535969321,2.1865,169.22,169.18,2.1869]
[1717535969823,8.6123,169.22,169.18,2.1869]
[1717535972843,8.6123,169.22,169.18,2.1869]
[1717535973123,2.1866,169.21,169.17,2.1871]
[1717535973427,22.1867,169.21,169.17,2.1871]
[1717535973596,28.8667,169.21,169.17,2.1871]
[1717535974099,35.2557,169.21,169.17,2.1871]
[1717535974323,2.1867,169.2,169.17,2.1871]
[1717535982843,6.4398,169.19,169.16,2.1872]
[1717535983020,8.6268,169.18,169.13,4.375]
[1717535983219,2.1872,169.17,169.14,2.1874]
[1717535984223,15.3069,169.18,169.14,2.1874]
[1717535985012,8.6269,169.18,169.14,2.1874]
[1717535985213,2.1871,169.17,169.14,2.1874]
[1717535989231,2.1871,169.17,169.13,2.1875]
[1717535990645,2.1872,169.16,169.13,2.1875]
[1717535991331,8.1975,169.17,169.13,2.1875]
[1717535991739,2.1872,169.16,169.13,2.1875]
[1717535993734,2.1874,169.15,169.12,2.1877]
[1717535994150,2.1874,169.15,169.11,2.1878]
[1717535994344,2.1874,169.15,169.1,0.8441764]
[1717535994532,2.1874,169.15,169.12,2.1877]
[1717535994959,2.1874,169.15,169.1,5.2202764]
[1717535994960,2.1874,169.15,169.11,2.1878]
[1717535996949,2.1875,169.14,169.11,2.1878]
[1717536004772,8.5842,169.14,169.11,2.1878]
[1717536005539,2.1876,169.13,169.1,3.0320764]
[1717536005743,13.0767,169.14,169.1,3.0320764]
[1717536006054,15.2643,169.14,169.1,3.0320764]
[1717536006445,15.2643,169.14,169.11,2.1879]
[1717536006667,15.2643,169.14,169.1,3.0320764]
[1717536007666,2.1876,169.13,169.1,3.0320764]
[1717536007841,8.5843,169.13,169.1,3.0320764]
[1717536008044,6.3967,169.13,169.11,2.1879]
[1717536008251,13.0767,169.13,169.1,3.0320764]
[1717536008452,13.0767,169.13,169.11,2.1879]
[1717536008870,6.3967,169.13,169.11,2.1879]
[1717536009072,6.3967,169.13,169.1,3.0320764]
[1717536011380,8.5843,169.13,169.1,3.0320764]
[1717536012284,15.2643,169.13,169.1,3.0320764]
[1717536015959,8.5843,169.13,169.1,3.0320764]
[1717536017769,6.3967,169.13,169.1,3.0320764]
[1717536018680,8.5843,169.13,169.1,3.0320764]
[1717536019973,6.3967,169.13,169.1,3.0320764]
[1717536020460,6.3967,169.13,169.1,0.8441764]
[1717536020670,6.3967,169.13,169.1,3.0321764]
[1717536020671,8.5844,169.13,169.1,3.0321764]
[1717536020875,8.42809232,169.13,169.1,3.0321764]
[1717536021062,6.24039232,169.13,169.1,3.0321764]
[1717536021263,6.24039232,169.13,169.11,2.1879]
[1717536021968,6.24039232,169.13,169.1,3.0320764]
[1717536032373,2.1876,169.14,169.11,2.1878]
[1717536032568,37.6074,169.15,169.11,2.1878]
[1717536036287,24.3747,169.16,169.11,2.1878]
[1717536036288,20.0,169.16,169.14,2.1874]
[1717536036488,2.1871,169.17,169.13,6.68]
[1717536036799,2.1871,169.17,169.13,8.8675]
[1717536036975,2.1871,169.17,169.13,6.68]
[1717536037177,2.1871,169.17,169.13,8.8675]
[1717536039407,20.0,169.18,169.13,8.8675]
[1717536039408,2.1872,169.16,169.13,8.8675]
[1717536039699,2.1872,169.17,169.13,8.8675]
[1717536040411,22.187,169.18,169.14,2.1874]
[1717536040890,2.1871,169.17,169.13,2.1875]
[1717536041199,2.1871,169.17,169.13,8.8675]
[1717536042999,2.1871,169.17,169.14,2.1875]
[1717536043500,20.0,169.18,169.15,2.1873]
[1717536043677,2.187,169.19,169.14,6.68]
[1717536043873,2.187,169.19,169.15,2.1873]
[1717536044183,2.187,169.19,169.15,8.8673]
[1717536044575,2.187,169.19,169.15,2.1873]
[1717536045801,22.1868,169.2,169.16,2.1872]
[1717536047605,2.1869,169.19,169.15,8.8673]
[1717536048012,2.1869,169.19,169.16,2.1872]
[1717536048681,20.0,169.2,169.16,2.1872]
[1717536048682,22.1868,169.2,169.16,2.1872]
[1717536050694,2.1868,169.19,169.16,2.1872]
[1717536050897,2.1868,169.19,169.15,8.8673]
[1717536053214,2.1868,169.19,169.16,1.18108253]
[1717536054010,2.1868,169.19,169.15,8.8673]
[1717536055822,2.1877,169.13,169.09,2.1881]
[1717536055994,2.1873,169.16,169.12,8.8677]
[1717536056336,2.1872,169.16,169.12,6.68]
[1717536056498,2.1872,169.16,169.12,8.8677]
[1717536056814,2.1872,169.17,169.12,8.8677]
[1717536057014,2.1873,169.16,169.12,8.8677]
[1717536057816,2.1873,169.16,169.12,2.1877]
[1717536058111,2.1873,169.16,169.12,8.8677]
[1717536058814,2.1872,169.17,169.13,2.1876]
[1717536059020,20.0,169.18,169.15,6.68]
[1717536059221,2.1869,169.19,169.15,8.8673]
[1717536060224,2.1869,169.19,169.15,6.68]
[1717536060922,2.1869,169.19,169.14,2.1874]
[1717536061223,2.187,169.18,169.14,2.1874]
[1717536062612,2.187,169.18,169.13,8.8675]
[1717536062821,2.1871,169.17,169.13,6.68]
[1717536063024,2.1871,169.17,169.12,8.8677]
[1717536063831,2.1871,169.17,169.13,2.1876]
[1717536068121,2.187,169.18,169.13,2.1876]
[1717536068296,8.867,169.18,169.13,2.1876]
[1717536071409,8.867,169.18,169.14,2.1875]
[1717536072300,2.187,169.18,169.14,2.1875]
[1717536075125,6.3643,169.23,169.13,120.0]
[1717536075333,8.5507,169.23,169.18,2.1869]
[1717536075513,6.3643,169.23,169.19,2.1868]
[1717536075718,6.3643,169.23,169.18,6.68]
[1717536075922,6.3643,169.23,169.18,2.1869]
[1717536075923,2.1865,169.22,169.18,2.1869]
[1717536076114,2.1865,169.22,169.17,8.867]
[1717536076316,2.1865,169.22,169.18,2.187]
[1717536080539,2.1865,169.22,169.17,8.867]
[1717536081241,2.1865,169.22,169.17,2.187]
[1717536081531,2.1866,169.21,169.17,2.187]
[1717536082436,2.1865,169.22,169.17,2.187]
[1717536083240,2.1865,169.22,169.18,2.187]
[1717536085348,2.1865,169.22,169.17,2.187]
[1717536085854,2.1865,169.22,169.18,2.187]
[1717536086644,22.1864,169.23,169.18,2.187]
[1717536087124,22.1864,169.23,169.19,8.8668]
[1717536087328,2.1864,169.23,169.19,8.8668]
[1717536087523,2.1862,169.25,169.18,4.3739]
[1717536087749,2.1862,169.25,169.2,8.8666]
[1717536087951,2.1862,169.24,169.2,8.8666]
[1717536088237,2.1862,169.24,169.2,2.1866]
[1717536089266,2.1862,169.24,169.19,2.1868]
[1717536089444,2.1862,169.24,169.2,2.1867]
[1717536090555,2.1862,169.24,169.19,8.8668]
[1717536091447,2.1862,169.24,169.2,2.1867]
[1717536094046,2.1862,169.24,169.19,2.1868]
[1717536094276,2.1862,169.24,169.19,8.8668]
[1717536094441,2.1863,169.23,169.19,8.8668]
[1717536094977,2.1863,169.24,169.19,8.8668]
[1717536095263,2.1863,169.24,169.2,6.68]
[1717536095486,2.1863,169.24,169.21,1.18309401]
[1717536095841,2.1863,169.24,169.2,6.68]
[1717536096474,20.0,169.25,169.2,6.68]
[1717536096658,2.1863,169.24,169.2,8.8667]
[1717536099779,22.1861,169.25,169.2,8.8667]
[1717536099963,20.0,169.25,169.19,2.1868]
[1717536100274,26.68,169.25,169.19,8.8668]
[1717536100460,2.1863,169.24,169.19,8.8668]
[1717536101256,2.1863,169.23,169.19,8.8668]
[1717536101853,20.0,169.25,169.19,8.8668]
[1717536102053,2.1863,169.24,169.2,2.1867]
[1717536104256,22.1861,169.25,169.2,2.1867]
[1717536104463,22.1861,169.25,169.21,2.1866]
[1717536104873,2.1862,169.24,169.2,2.1867]
[1717536105488,22.1861,169.25,169.2,2.1867]
[1717536108578,2.1862,169.24,169.2,2.1867]
[1717536110888,22.1861,169.25,169.2,2.1867]
[1717536112792,2.1862,169.24,169.2,2.1867]
[1717536115495,22.1861,169.25,169.2,2.1867]
[1717536115687,22.1861,169.25,169.21,2.1865]
[1717536116383,22.1861,169.25,169.19,11.0537]
[1717536116384,22.1861,169.25,169.2,2.1866]
[1717536116781,2.1862,169.24,169.2,2.1866]
[1717536116990,20.0,169.25,169.21,2.1866]
[1717536117182,22.1862,169.25,169.2,2.1866]
[1717536117974,2.1862,169.24,169.2,2.1866]
[1717536124591,41.6279,169.23,169.15,8.7495]
[1717536124799,2.1867,169.21,169.17,2.1871]
[1717536126190,2.1868,169.2,169.15,4.3747]
[1717536126391,2.1867,169.21,169.17,2.187]
[1717536127731,2.1867,169.2,169.17,2.187]
[1717536128517,2.1867,169.2,169.16,2.1871]
[1717536129119,8.8667,169.2,169.16,2.1871]
[1717536129429,15.0746,169.2,169.16,2.1871]
[1717536130417,2.1869,169.19,169.16,2.1871]
[1717536130624,15.0747,169.2,169.16,2.1871]
[1717536132723,8.8668,169.19,169.16,2.1871]
[1717536133631,6.68,169.19,169.16,2.1871]
[1717536134414,8.8668,169.19,169.16,2.1871]
[1717536134931,2.187,169.18,169.12,10.9386]
[1717536135137,2.187,169.18,169.15,2.1873]
[1717536135310,2.1869,169.19,169.13,17.6182]
[1717536135516,8.8669,169.19,169.15,2.1873]
[1717536135935,8.8669,169.19,169.16,2.1872]
[1717536136137,13.0233,169.19,169.16,2.1872]
[1717536138043,15.2102,169.19,169.15,2.1873]
[1717536140744,20.0,169.22,169.17,2.1871]
[1717536140944,28.5298,169.22,169.18,2.1869]
[1717536142645,2.1866,169.21,169.18,2.1869]
[1717536142943,2.1866,169.21,169.17,8.867]
[1717536143146,2.1866,169.21,169.17,2.187]
[1717536144943,2.1867,169.2,169.17,2.187]
[1717536145146,6.3433,169.21,169.17,2.187]
[1717536145437,2.1868,169.2,169.17,2.1871]
[1717536146353,15.21,169.21,169.17,2.1871]
[1717536149226,2.1867,169.2,169.17,2.1871]
[1717536150364,15.21,169.21,169.17,2.1871]
[1717536152536,8.53,169.21,169.17,2.1871]
[1717536154163,8.53,169.21,169.18,2.187]
[1717536155262,2.1867,169.21,169.18,2.187]
[1717536157164,2.1867,169.21,169.17,2.187]
[1717536162935,8.7531,169.21,169.17,2.187]
[1717536163540,2.1867,169.2,169.17,2.187]
[1717536166265,8.7531,169.21,169.17,2.187]
[1717536168670,6.5664,169.21,169.14,19.6873]
[1717536168858,2.1868,169.2,169.17,2.1871]
[1717536169054,8.753,169.21,169.18,2.1869]
[1717536169256,8.753,169.21,169.16,11.0545]
[1717536169773,8.753,169.21,169.18,2.1869]
[1717536170266,8.753,169.21,169.17,2.187]
[1717536171845,8.753,169.21,169.18,2.187]
[1717536173750,8.753,169.21,169.17,2.187]
[1717536175788,8.753,169.21,169.18,2.187]
[1717536176080,8.753,169.21,169.17,2.187]
[1717536180594,8.753,169.21,169.16,11.0545]
[1717536180595,8.753,169.21,169.18,2.187]
[1717536180777,8.753,169.21,169.17,2.187]
[1717536182059,8.753,169.21,169.18,2.187]
[1717536182269,8.753,169.21,169.17,2.187]
[1717536191488,6.2269,169.2,169.17,2.187]
[1717536195087,6.2269,169.2,169.12,6.5631]
[1717536195394,6.2323,169.19,169.16,2.1872]
[1717536195690,6.2323,169.19,169.17,2.1871]
[1717536195905,6.2323,169.19,169.16,2.1871]
[1717536196079,6.2323,169.19,169.17,2.1871]
[1717536199162,6.2323,169.19,169.11,8.7516]
[1717536199163,28.0013,169.19,169.11,8.7516]
[1717536199364,8.8671,169.18,169.14,2.1874]
[1717536199591,6.1668,169.17,169.14,2.1874]
[1717536200300,6.1668,169.17,169.12,10.9387]
[1717536200466,6.1668,169.17,169.12,17.6187]
[1717536200869,6.1668,169.17,169.14,2.1874]
[1717536204210,6.5673,169.16,169.14,2.1874]
[1717536212425,6.5673,169.16,169.11,15.3153]
[1717536212594,6.5673,169.16,169.13,2.1876]
[1717536213511,8.7545,169.16,169.13,2.1876]
[1717536214816,8.213,169.17,169.13,2.1876]
[1717536215118,2.1872,169.16,169.13,2.1876]
[1717536215817,8.3862,169.16,169.13,2.1876]
[1717536216815,6.04,169.13,169.1,0.8441764]
[1717536216997,6.04,169.13,169.1,3.0320764]
[1717536217821,6.04,169.13,169.11,2.1879]
[1717536218509,6.04,169.15,169.12,2.1877]
[1717536218894,8.2274,169.15,169.12,2.1877]
[1717536219092,2.1875,169.14,169.11,2.1878]
[1717536219397,8.2274,169.15,169.11,2.1878]
[1717536221024,2.1875,169.14,169.11,2.1878]
[1717536228496,2.187,169.18,169.14,2.1875]
[1717536237329,2.1871,169.17,169.14,2.1875]
[1717536240949,2.1871,169.18,169.14,2.1875]
[1717536241315,2.1868,169.2,169.16,2.1871]
[1717536243151,2.1868,169.19,169.16,2.1871]
[1717536243339,2.1868,169.2,169.16,2.1871]
[1717536243546,2.1864,169.23,169.17,11.0541]
[1717536243721,1.36552846,169.27,169.22,2.1864]
[1717536244040,1.36552846,169.27,169.23,2.1863]
[1717536244355,2.1859,169.26,169.22,2.1864]
[1717536244559,2.1859,169.26,169.22,3.3652489]
[1717536244907,2.1859,169.26,169.22,1.1788489]
[1717536245132,2.1859,169.26,169.22,3.3652489]
[1717536246814,1.36552846,169.27,169.23,2.1862]
[1717536247143,2.1859,169.26,169.22,3.3652489]
[1717536248159,2.1859,169.26,169.22,2.1864]
[1717536250623,1.36552846,169.27,169.23,8.8662]
[1717536250828,3.55142846,169.27,169.23,8.8662]
[1717536251221,3.55142846,169.27,169.23,2.1862]
[1717536253615,2.1859,169.27,169.23,2.1862]
[1717536254632,2.1857,169.28,169.24,2.1862]
[1717536254841,2.1857,169.28,169.24,2.1861]
[1717536255020,20.0,169.29,169.26,2.1859]
[1717536255334,39.8205,169.32,169.24,11.0523]
[1717536255335,20.0,169.31,169.25,6.601]
[1717536255542,6.68,169.34,169.26,17.6095]
[1717536255744,22.1851,169.33,169.29,2.1855]
[1717536256244,2.1852,169.32,169.28,2.1856]
[1717536257627,2.1852,169.32,169.29,30.0]
[1717536259722,2.1852,169.32,169.28,2.1856]
[1717536267358,2.1852,169.32,169.29,2.1855]
[1717536268763,2.1852,169.32,169.28,2.1856]
[1717536273754,2.1853,169.31,169.28,2.1856]
[1717536273942,4.3699,169.34,169.29,2.1855]
[1717536274267,11.0499,169.34,169.29,2.1855]
[1717536275061,2.1852,169.32,169.29,2.1855]
[1717536275441,2.1852,169.32,169.28,2.1856]
[1717536277254,2.1852,169.32,169.29,2.1855]
[1717536278065,2.1851,169.33,169.29,2.1855]
[1717536279390,2.1851,169.33,169.29,8.8655]
[1717536280770,22.185,169.34,169.3,2.1854]
[1717536280952,2.185,169.34,169.3,2.1854]
[1717536282150,2.185,169.34,169.31,2.1853]
[1717536282355,22.1849,169.35,169.31,2.1853]
[1717536283095,2.1849,169.35,169.31,2.1853]
[1717536283273,2.1849,169.35,169.31,8.8653]
[1717536285177,2.1848,169.35,169.31,8.8653]
[1717536285476,2.1849,169.35,169.31,8.8653]
[1717536287385,2.1849,169.34,169.31,8.8653]
[1717536288066,2.1849,169.35,169.31,8.8653]
[1717536289376,24.3693,169.36,169.31,6.68]
[1717536289377,2.185,169.34,169.31,6.68]
[1717536290381,2.185,169.33,169.3,9.0353]
[1717536291187,2.185,169.34,169.3,9.0353]
[1717536294586,37.6034,169.36,169.31,8.8652]
[1717536294587,2.1848,169.35,169.31,8.8652]
[1717536296487,2.1849,169.34,169.31,6.68]
[1717536298860,2.1849,169.34,169.31,8.8653]
[1717536299258,2.1849,169.34,169.31,6.68]
[1717536300086,10.9223,169.38,169.32,6.68]
[1717536300294,2.1847,169.36,169.32,2.1851]
[1717536300480,2.1847,169.36,169.33,6.68]
[1717536300789,2.1847,169.36,169.3,4.5408]
[1717536300790,17.601,169.4,169.34,6.68]
[1717536300988,2.1845,169.37,169.33,2.1849]
[1717536302112,2.1844,169.38,169.34,2.1849]
[1717536304772,2.1843,169.39,169.35,2.1848]
[1717536313601,2.1843,169.39,169.34,6.68]
[1717536313602,22.1842,169.4,169.36,2.1846]
[1717536313789,2.1842,169.4,169.36,2.1846]
[1717536314311,2.1842,169.4,169.36,8.8646]
[1717536314517,2.1842,169.4,169.37,6.85]
[1717536315384,2.1842,169.4,169.36,2.1846]
[1717536315600,2.1842,169.4,169.36,8.8646]
[1717536316788,2.1842,169.4,169.37,6.68]
[1717536318703,24.3678,169.42,169.39,6.68]
[1717536318704,2.1839,169.42,169.39,6.68]
[1717536318909,2.1838,169.43,169.39,8.8643]
[1717536319298,8.7343,169.45,169.39,6.68]
[1717536319616,2.1838,169.43,169.39,8.8642]
[1717536321519,2.1839,169.42,169.39,6.68]
[1717536321732,2.1839,169.43,169.39,8.8642]
[1717536322400,2.1839,169.42,169.39,6.68]
[1717536323327,2.1838,169.43,169.39,8.8642]
[1717536323690,22.1837,169.44,169.39,8.8642]
[1717536323894,2.1838,169.43,169.39,8.8642]
[1717536329713,2.1838,169.43,169.4,6.68]
[1717536329909,2.1838,169.43,169.4,6.85]
[1717536330401,2.1838,169.43,169.41,6.68]
[1717536332513,4.3665,169.47,169.4,0.17]
[1717536332703,2.1835,169.45,169.42,6.68]
[1717536336302,2.1835,169.45,169.42,8.8639]
[1717536336910,2.1834,169.46,169.42,8.8639]
[1717536339031,2.1835,169.45,169.42,8.8639]
[1717536340406,2.1835,169.45,169.42,6.68]
[1717536341006,2.1834,169.46,169.42,2.1838]
[1717536341201,2.1834,169.46,169.43,6.68]
[1717536341400,2.1834,169.46,169.42,8.8638]
[1717536341823,20.0,169.47,169.42,8.8638]
[1717536341824,2.1835,169.45,169.42,8.8638]
[1717536343226,2.1834,169.46,169.42,8.8638]
[1717536344610,2.1834,169.46,169.42,2.1838]
[1717536344803,20.0,169.47,169.43,8.8637]
[1717536345005,2.1833,169.47,169.44,6.68]
[1717536346643,2.1832,169.48,169.45,6.68]
[1717536347435,2.1832,169.48,169.44,2.1836]
[1717536347601,2.1832,169.47,169.45,6.68]
[1717536348257,2.1832,169.47,169.44,6.68]
[1717536351623,2.1831,169.48,169.44,8.8636]
[1717536356328,2.1831,169.48,169.44,2.1836]
[1717536357720,2.183,169.49,169.45,2.1834]
[1717536357915,2.183,169.49,169.45,8.8634]
[1717536358118,2.183,169.49,169.46,8.8633]
[1717536358542,2.1829,169.5,169.46,8.8633]
[1717536358932,2.183,169.49,169.46,8.8633]
[1717536359648,4.3655,169.51,169.47,2.1832]
[1717536359649,2.1828,169.51,169.47,2.1832]
[1717536359958,4.3653,169.52,169.47,2.1832]
[1717536360264,2.1827,169.52,169.48,6.68]
[1717536360456,2.1827,169.52,169.48,8.863]
[1717536361936,2.1827,169.52,169.48,2.183]
[1717536362156,2.1827,169.52,169.49,6.68]
[1717536362661,22.1825,169.53,169.49,8.863]
[1717536362953,2.1824,169.54,169.5,8.8628]
[1717536365469,2.1824,169.54,169.51,6.68]
[1717536365667,2.1824,169.54,169.5,8.8628]
[1717536367180,2.1823,169.55,169.52,8.8626]
[1717536367678,2.1823,169.55,169.53,6.68]
[1717536367874,2.1821,169.56,169.53,6.68]
[1717536368080,2.1821,169.56,169.53,8.8624]
[1717536368258,2.1818,169.58,169.54,2.1823]
[1717536368466,2.1819,169.58,169.54,2.1822]
[1717536369382,2.1819,169.58,169.54,8.8622]
[1717536371070,2.1817,169.6,169.56,2.182]
[1717536371281,2.1818,169.59,169.55,8.8621]
[1717536372379,2.1818,169.59,169.55,8.8622]
[1717536373564,35.4063,169.61,169.52,0.17]
[1717536373770,2.1818,169.59,169.55,2.1821]
[1717536375272,2.1818,169.59,169.55,8.8621]
[1717536375775,2.1818,169.59,169.56,2.1821]
[1717536375977,2.1816,169.6,169.55,6.68]
[1717536376184,2.1816,169.6,169.56,2.182]
[1717536377801,2.1817,169.59,169.56,2.182]
[1717536383898,2.1816,169.6,169.56,2.182]
[1717536384194,2.1816,169.6,169.56,8.862]
[1717536384500,2.1817,169.59,169.56,8.862]
[1717536384699,2.1816,169.6,169.56,8.862]
[1717536387002,2.1816,169.6,169.57,2.1819]
[1717536390404,24.3627,169.62,169.58,6.68]
[1717536390405,22.1814,169.62,169.58,6.68]
[1717536390718,2.1814,169.62,169.58,6.68]
[1717536391013,2.1814,169.62,169.58,8.8617]
[1717536391694,2.1814,169.61,169.58,8.8617]
[1717536392606,2.1814,169.62,169.58,8.8617]
[1717536392992,2.1814,169.61,169.58,8.8617]
[1717536394008,2.1814,169.62,169.58,8.8617]
[1717536396710,2.1815,169.61,169.57,9.0319]
[1717536398592,2.1815,169.61,169.58,2.1818]
[1717536399011,6.68,169.64,169.57,6.85]
[1717536399202,2.1812,169.63,169.59,8.8616]
[1717536400312,2.1813,169.62,169.59,8.8616]
[1717536400536,2.1813,169.62,169.59,2.1816]
[1717536400739,2.1813,169.62,169.59,8.8616]
[1717536402005,2.1812,169.63,169.61,6.68]
[1717536402323,2.1811,169.64,169.62,6.68]
[1717536403191,2.181,169.65,169.62,6.68]
[1717536404313,2.1811,169.64,169.62,6.68]
[1717536404608,2.181,169.65,169.62,6.68]
[1717536404813,4.3617,169.66,169.63,8.8612]
[1717536404814,2.1809,169.66,169.63,8.8612]
[1717536405026,2.1809,169.66,169.63,6.68]
[1717536405223,2.1809,169.66,169.63,8.8612]
[1717536405405,2.1809,169.66,169.63,6.68]
[1717536406128,2.1809,169.66,169.63,8.8611]
[1717536406692,2.1809,169.66,169.64,6.68]
[1717536407524,2.1807,169.67,169.64,8.861]
[1717536407719,2.1807,169.67,169.64,6.68]
[1717536408712,2.1807,169.67,169.63,2.1811]
[1717536408914,2.1808,169.66,169.64,6.68]
[1717536410900,2.1806,169.68,169.64,8.861]
[1717536411302,2.1806,169.68,169.65,2.1809]
[1717536411523,2.1806,169.68,169.65,10.03788408]
[1717536411701,2.1806,169.68,169.65,8.8609]
[1717536411903,3.0246764,169.69,169.65,8.8609]
[1717536412101,3.0246764,169.69,169.66,1.17677595]
[1717536412516,2.1805,169.68,169.66,1.17677595]
[1717536413014,2.1805,169.68,169.65,3.35767594]
[1717536413319,2.1805,169.68,169.65,2.1809]
[1717536413631,0.8441764,169.69,169.65,3.357752]
[1717536413826,0.8441764,169.69,169.66,8.2878]
[1717536413997,3.0245764,169.69,169.66,8.2878]
[1717536414192,3.0245764,169.69,169.66,8.8608]
[1717536414696,3.0245764,169.69,169.66,6.68]
[1717536415235,3.0245764,169.69,169.66,2.1808]
[1717536415408,3.0245764,169.69,169.67,6.68]
[1717536416208,0.8441764,169.69,169.67,6.68]
[1717536418238,3.0245764,169.69,169.67,6.68]
[1717536418728,0.8441764,169.69,169.67,8.8607]
[1717536419615,3.0246764,169.69,169.66,2.1807]
[1717536420731,3.0246764,169.69,169.65,8.8608]
[1717536421032,3.0246764,169.69,169.66,2.1808]
[1717536421738,0.8441764,169.69,169.67,2.1806]
[1717536422305,0.8441764,169.69,169.67,8.8606]
[1717536422731,0.8441764,169.69,169.67,2.1806]
[1717536424632,0.8441764,169.69,169.68,2.1805]
[1717536425348,0.8441764,169.69,169.68,3.35865781]